[Event "Titled Tuesday Blitz May 10 Late 2022"]
[White "Kate1606"]
[Black "Omariev, Maksim"]
[BlackFideId "4193423"]
[WhiteElo "2072"]
[BlackElo "2485"]
[Result "0-1"]
[Round "08"]
[TimeControl "180+1"]
[Date "2022.05.11"]
[WhiteClock "0:00:02"]
[BlackClock "0:01:56"]

1. d4 {[%clk 0:02:55]}  h5 {[%clk 0:03:00]} 2. Bf4 {[%clk 0:02:51]}  h4 {[%clk 0:03:01]} 3. e3 {[%clk 0:02:46]}  c6 {[%clk 0:03:02]} 4. c3 {[%clk 0:02:43]}  d5 {[%clk 0:03:03]} 5. Nd2 {[%clk 0:02:43]}  h3 {[%clk 0:03:04]} 6. gxh3 {[%clk 0:02:38]}  Qb6 {[%clk 0:03:05]} 7. Qb3 {[%clk 0:02:34]}  Nf6 {[%clk 0:03:06]} 8. Bg2 {[%clk 0:02:23]}  g6 {[%clk 0:03:03]} 9. Be5 {[%clk 0:02:22]}  Bg7 {[%clk 0:03:03]} 10. Ndf3 {[%clk 0:02:08]}  Bf5 {[%clk 0:02:58]} 11. Qxb6 {[%clk 0:01:51]}  axb6 {[%clk 0:02:59]} 12. a3 {[%clk 0:01:48]}  Nbd7 {[%clk 0:02:59]} 13. Kd2 {[%clk 0:01:37]}  Ne4+ {[%clk 0:02:57]} 14. Ke2 {[%clk 0:01:36]}  f6 {[%clk 0:02:46]} 15. Bg3 {[%clk 0:01:23]}  g5 {[%clk 0:02:47]} 16. Nd2 {[%clk 0:01:20]}  Nxd2 {[%clk 0:02:42]} 17. Kxd2 {[%clk 0:01:19]}  b5 {[%clk 0:02:42]} 18. Bf1 {[%clk 0:01:00]}  e5 {[%clk 0:02:35]} 19. Bd3 {[%clk 0:00:54]}  e4 {[%clk 0:02:26]} 20. Be2 {[%clk 0:00:54]}  Kf7 {[%clk 0:02:16]} 21. Bg4 {[%clk 0:00:52]}  Be6 {[%clk 0:02:11]} 22. Ne2 {[%clk 0:00:45]}  f5 {[%clk 0:02:11]} 23. h4 {[%clk 0:00:34]}  gxh4 {[%clk 0:02:09]} 24. Bxf5 {[%clk 0:00:29]}  Bxf5 {[%clk 0:02:09]} 25. Bd6 {[%clk 0:00:23]}  Bg4 {[%clk 0:02:04]} 26. Nf4 {[%clk 0:00:22]}  Bf3 {[%clk 0:02:03]} 27. Rhg1 {[%clk 0:00:21]}  Bf6 {[%clk 0:02:01]} 28. Rac1 {[%clk 0:00:15]}  Rag8 {[%clk 0:02:01]} 29. Nh3 {[%clk 0:00:08]}  Ke6 {[%clk 0:01:59]} 30. Rb1 {[%clk 0:00:08]}  Kxd6 {[%clk 0:02:00]} 31. Rxg8 {[%clk 0:00:05]}  Rxg8 {[%clk 0:02:01]} 32. Rg1 {[%clk 0:00:02]}  Rxg1 {[%clk 0:02:01]} 33. Nxg1 {[%clk 0:00:03]}  Bg4 {[%clk 0:02:00]} 34. h3 {[%clk 0:00:03]}  Bf3 {[%clk 0:01:59]} 35. Nxf3 {[%clk 0:00:02]}  exf3 {[%clk 0:01:59]} 36. b4 {[%clk 0:00:01]}  Ke6 {[%clk 0:01:59]} 37. Ke1 {[%clk 0:00:02]}  Kf5 {[%clk 0:01:59]} 38. Kf1 {[%clk 0:00:02]}  Ke4 {[%clk 0:02:00]} 39. Ke1 {[%clk 0:00:02]}  Kd3 {[%clk 0:02:00]} 40. Kd1 {[%clk 0:00:02]}  Bg5 {[%clk 0:01:56]} 0-1


[Site "https://www.chess.com"]

[Event "Titled Tuesday Blitz May 10 Late 2022"]
[White "Koellner, Ruben Gideon"]
[Black "Oganian, Miran"]
[WhiteFideId "12993093"]
[BlackFideId "4122488"]
[WhiteElo "2621"]
[BlackElo "2357"]
[Result "1-0"]
[Round "08"]
[TimeControl "180+1"]
[Date "2022.05.10"]
[WhiteClock "0:02:15"]
[BlackClock "0:01:44"]

1. d4 {[%clk 0:03:00]}  e6 {[%clk 0:03:00]} 2. Nf3 {[%clk 0:02:57]}  d5 {[%clk 0:03:00]} 3. Nbd2 {[%clk 0:02:57]}  Nf6 {[%clk 0:02:59]} 4. e3 {[%clk 0:02:56]}  Bd6 {[%clk 0:02:57]} 5. Bd3 {[%clk 0:02:56]}  Nbd7 {[%clk 0:02:56]} 6. O-O {[%clk 0:02:57]}  b6 {[%clk 0:02:56]} 7. e4 {[%clk 0:02:57]}  dxe4 {[%clk 0:02:55]} 8. Nxe4 {[%clk 0:02:58]}  Bb7 {[%clk 0:02:55]} 9. Qe2 {[%clk 0:02:58]}  h6 {[%clk 0:02:54]} 10. c3 {[%clk 0:02:57]}  O-O {[%clk 0:02:53]} 11. Rd1 {[%clk 0:02:57]}  Nd5 {[%clk 0:02:44]} 12. Nxd6 {[%clk 0:02:48]}  cxd6 {[%clk 0:02:45]} 13. Qe4 {[%clk 0:02:48]}  N7f6 {[%clk 0:02:39]} 14. Qh4 {[%clk 0:02:48]}  Nd7 {[%clk 0:02:08]} 15. Qg3 {[%clk 0:02:45]}  N7f6 {[%clk 0:01:50]} 16. Bxh6 {[%clk 0:02:41]}  Nh5 {[%clk 0:01:49]} 17. Qh3 {[%clk 0:02:16]}  Ndf4 {[%clk 0:01:45]} 18. Bxf4 {[%clk 0:02:15]}  Nxf4 {[%clk 0:01:44]} 19. Qh7# {[%clk 0:02:15]} 1-0


[Site "https://www.chess.com"]

[Event "Titled Tuesday Blitz May 10 Late 2022"]
[White "Lewicki, Miroslaw"]
[Black "Kamsky, Gata"]
[WhiteFideId "1113380"]
[BlackFideId "2000024"]
[WhiteElo "2283"]
[BlackElo "2645"]
[Result "1-0"]
[Round "08"]
[TimeControl "180+1"]
[Date "2022.05.10"]
[WhiteClock "0:00:29"]
[BlackClock "0:00:06"]

1. b3 {[%clk 0:02:56]}  d5 {[%clk 0:02:58]} 2. Bb2 {[%clk 0:02:57]}  Bf5 {[%clk 0:02:58]} 3. Nf3 {[%clk 0:02:57]}  e6 {[%clk 0:02:59]} 4. g3 {[%clk 0:02:57]}  Nf6 {[%clk 0:02:59]} 5. Bg2 {[%clk 0:02:57]}  Be7 {[%clk 0:02:59]} 6. O-O {[%clk 0:02:58]}  O-O {[%clk 0:02:59]} 7. c4 {[%clk 0:02:58]}  c6 {[%clk 0:02:59]} 8. d4 {[%clk 0:02:57]}  Nbd7 {[%clk 0:02:58]} 9. Nc3 {[%clk 0:02:57]}  h6 {[%clk 0:02:58]} 10. Re1 {[%clk 0:02:56]}  a5 {[%clk 0:02:55]} 11. Ne5 {[%clk 0:02:49]}  Nxe5 {[%clk 0:02:45]} 12. dxe5 {[%clk 0:02:50]}  Ne4 {[%clk 0:02:37]} 13. Nxe4 {[%clk 0:02:36]}  dxe4 {[%clk 0:02:36]} 14. Qc1 {[%clk 0:02:31]}  Bc5 {[%clk 0:02:26]} 15. Rd1 {[%clk 0:02:27]}  Qb6 {[%clk 0:02:25]} 16. e3 {[%clk 0:02:26]}  Rfd8 {[%clk 0:02:21]} 17. Qc2 {[%clk 0:02:26]}  Rxd1+ {[%clk 0:02:04]} 18. Rxd1 {[%clk 0:02:26]}  Rd8 {[%clk 0:02:04]} 19. Rxd8+ {[%clk 0:02:20]}  Qxd8 {[%clk 0:02:03]} 20. Bxe4 {[%clk 0:02:21]}  Bxe4 {[%clk 0:02:01]} 21. Qxe4 {[%clk 0:02:22]}  Qd2 {[%clk 0:01:59]} 22. Qb1 {[%clk 0:01:54]}  Qe2 {[%clk 0:01:41]} 23. Bd4 {[%clk 0:01:42]}  Bb4 {[%clk 0:01:38]} 24. Qb2 {[%clk 0:01:40]}  Qd3 {[%clk 0:01:21]} 25. a3 {[%clk 0:01:33]}  Bd2 {[%clk 0:01:16]} 26. b4 {[%clk 0:01:22]}  a4 {[%clk 0:01:08]} 27. b5 {[%clk 0:01:18]}  Kh7 {[%clk 0:00:31]} 28. bxc6 {[%clk 0:01:14]}  bxc6 {[%clk 0:00:31]} 29. c5 {[%clk 0:00:52]}  Be1 {[%clk 0:00:29]} 30. Kg2 {[%clk 0:00:43]}  h5 {[%clk 0:00:23]} 31. h4 {[%clk 0:00:43]}  Kg6 {[%clk 0:00:22]} 32. Qc1 {[%clk 0:00:40]}  Qe2 {[%clk 0:00:19]} 33. Qb1+ {[%clk 0:00:36]}  Kh6 {[%clk 0:00:18]} 34. e4 {[%clk 0:00:37]}  Bd2 {[%clk 0:00:10]} 35. Qc2 {[%clk 0:00:35]}  Qe1 {[%clk 0:00:10]} 36. Qxd2+ {[%clk 0:00:34]}  Qxd2 {[%clk 0:00:10]} 37. Be3+ {[%clk 0:00:35]}  Qxe3 {[%clk 0:00:10]} 38. fxe3 {[%clk 0:00:36]}  Kg6 {[%clk 0:00:08]} 39. Kf3 {[%clk 0:00:34]}  f5 {[%clk 0:00:07]} 40. Kf4 {[%clk 0:00:30]}  fxe4 {[%clk 0:00:06]} 41. Kxe4 {[%clk 0:00:30]}  Kf7 {[%clk 0:00:07]} 42. Kf4 {[%clk 0:00:29]}  g6 {[%clk 0:00:06]} 43. Kg5 {[%clk 0:00:28]}  Kg7 {[%clk 0:00:06]} 44. e4 {[%clk 0:00:29]} 1-0


[Site "https://www.chess.com"]

[Event "Titled Tuesday Blitz May 10 Late 2022"]
[White "Maghsoodloo, Parham"]
[Black "Nagy, Gabor"]
[WhiteFideId "12539929"]
[BlackFideId "737119"]
[WhiteElo "2630"]
[BlackElo "2569"]
[Result "0-1"]
[Round "08"]
[TimeControl "180+1"]
[Date "2022.05.10"]
[WhiteClock "0:00:14"]
[BlackClock "0:01:14"]

1. d4 {[%clk 0:03:00]}  Nf6 {[%clk 0:02:56]} 2. c4 {[%clk 0:03:00]}  g6 {[%clk 0:02:55]} 3. Nc3 {[%clk 0:03:00]}  Bg7 {[%clk 0:02:56]} 4. e4 {[%clk 0:03:01]}  O-O {[%clk 0:02:56]} 5. Be2 {[%clk 0:03:01]}  d6 {[%clk 0:02:55]} 6. Bg5 {[%clk 0:03:02]}  Nc6 {[%clk 0:02:52]} 7. Nf3 {[%clk 0:03:02]}  Bg4 {[%clk 0:02:52]} 8. d5 {[%clk 0:02:59]}  Bxf3 {[%clk 0:02:51]} 9. Bxf3 {[%clk 0:03:00]}  Ne5 {[%clk 0:02:52]} 10. Be2 {[%clk 0:02:59]}  c6 {[%clk 0:02:52]} 11. O-O {[%clk 0:02:59]}  cxd5 {[%clk 0:02:52]} 12. exd5 {[%clk 0:02:58]}  Rc8 {[%clk 0:02:49]} 13. b3 {[%clk 0:02:57]}  a6 {[%clk 0:02:47]} 14. a4 {[%clk 0:02:56]}  Nfd7 {[%clk 0:02:37]} 15. Rc1 {[%clk 0:02:50]}  Nc5 {[%clk 0:02:31]} 16. b4 {[%clk 0:02:45]}  Ncd7 {[%clk 0:02:29]} 17. Ne4 {[%clk 0:02:37]}  h6 {[%clk 0:02:23]} 18. Be3 {[%clk 0:02:27]}  f5 {[%clk 0:02:21]} 19. Nd2 {[%clk 0:02:24]}  f4 {[%clk 0:02:20]} 20. Bd4 {[%clk 0:02:24]}  a5 {[%clk 0:02:18]} 21. c5 {[%clk 0:02:06]}  axb4 {[%clk 0:02:16]} 22. cxd6 {[%clk 0:02:01]}  exd6 {[%clk 0:02:11]} 23. Rxc8 {[%clk 0:01:53]}  Qxc8 {[%clk 0:02:12]} 24. Qb1 {[%clk 0:01:53]}  Nc5 {[%clk 0:01:59]} 25. Qxb4 {[%clk 0:01:43]}  f3 {[%clk 0:01:56]} 26. Nxf3 {[%clk 0:01:42]}  Nxf3+ {[%clk 0:01:55]} 27. Bxf3 {[%clk 0:01:41]}  Rf4 {[%clk 0:01:53]} 28. Rd1 {[%clk 0:01:10]}  Qf5 {[%clk 0:01:42]} 29. Qb2 {[%clk 0:00:35]}  Rxd4 {[%clk 0:01:16]} 30. Rxd4 {[%clk 0:00:35]}  Qe5 {[%clk 0:01:16]} 31. Qc2 {[%clk 0:00:14]}  Qxd4 {[%clk 0:01:16]} 32. g3 {[%clk 0:00:13]}  Qd3 {[%clk 0:01:15]} 33. Qxd3 {[%clk 0:00:11]}  Nxd3 {[%clk 0:01:16]} 34. Be4 {[%clk 0:00:12]}  Nc5 {[%clk 0:01:16]} 35. Bxg6 {[%clk 0:00:13]}  Nxa4 {[%clk 0:01:16]} 36. Bd3 {[%clk 0:00:13]}  Nc3 {[%clk 0:01:15]} 37. Bc4 {[%clk 0:00:13]}  b5 {[%clk 0:01:15]} 38. Bb3 {[%clk 0:00:14]}  Ne2+ {[%clk 0:01:15]} 39. Kf1 {[%clk 0:00:14]}  Nd4 {[%clk 0:01:16]} 40. Ba2 {[%clk 0:00:14]}  b4 {[%clk 0:01:16]} 41. Ke1 {[%clk 0:00:13]}  b3 {[%clk 0:01:17]} 42. Bb1 {[%clk 0:00:13]}  Nb5 {[%clk 0:01:16]} 43. Kd2 {[%clk 0:00:13]}  Nc3 {[%clk 0:01:15]} 44. Bf5 {[%clk 0:00:14]}  b2 {[%clk 0:01:14]} 0-1


[Site "https://www.chess.com"]

[Event "Titled Tuesday Blitz May 10 Late 2022"]
[White "Maksimovic, Bojan"]
[Black "Sjugirov, Sanan"]
[WhiteFideId "14408120"]
[BlackFideId "4189302"]
[WhiteElo "2448"]
[BlackElo "2602"]
[Result "1/2-1/2"]
[Round "08"]
[TimeControl "180+1"]
[Date "2022.05.10"]
[WhiteClock "0:00:07"]
[BlackClock "0:01:48"]

1. e4 {[%clk 0:03:00]}  e5 {[%clk 0:02:58]} 2. Nf3 {[%clk 0:03:01]}  Nc6 {[%clk 0:02:58]} 3. Bb5 {[%clk 0:03:01]}  a6 {[%clk 0:02:58]} 4. Ba4 {[%clk 0:03:01]}  Nf6 {[%clk 0:02:59]} 5. O-O {[%clk 0:03:01]}  d6 {[%clk 0:03:00]} 6. Re1 {[%clk 0:02:59]}  Bd7 {[%clk 0:02:58]} 7. c4 {[%clk 0:02:59]}  g6 {[%clk 0:02:56]} 8. Bxc6 {[%clk 0:02:56]}  bxc6 {[%clk 0:02:55]} 9. d4 {[%clk 0:02:49]}  exd4 {[%clk 0:02:55]} 10. e5 {[%clk 0:02:44]}  dxe5 {[%clk 0:02:54]} 11. Nxe5 {[%clk 0:02:44]}  Be7 {[%clk 0:02:51]} 12. Qxd4 {[%clk 0:02:44]}  O-O {[%clk 0:02:49]} 13. Nxd7 {[%clk 0:02:07]}  Nxd7 {[%clk 0:02:49]} 14. Nc3 {[%clk 0:02:05]}  Bf6 {[%clk 0:02:49]} 15. Qf4 {[%clk 0:02:00]}  Nc5 {[%clk 0:02:38]} 16. Rd1 {[%clk 0:01:55]}  Qe7 {[%clk 0:02:31]} 17. Be3 {[%clk 0:01:55]}  Ne6 {[%clk 0:02:23]} 18. Qf3 {[%clk 0:01:55]}  Bxc3 {[%clk 0:02:19]} 19. bxc3 {[%clk 0:01:55]}  c5 {[%clk 0:02:20]} 20. Qc6 {[%clk 0:01:50]}  Rfd8 {[%clk 0:02:19]} 21. h3 {[%clk 0:01:50]}  a5 {[%clk 0:02:17]} 22. a4 {[%clk 0:01:49]}  h5 {[%clk 0:02:16]} 23. Rd5 {[%clk 0:01:48]}  Rab8 {[%clk 0:02:12]} 24. Rad1 {[%clk 0:01:47]}  Re8 {[%clk 0:02:05]} 25. Bxc5 {[%clk 0:01:25]}  Nxc5 {[%clk 0:02:06]} 26. Qxc5 {[%clk 0:01:16]}  Qxc5 {[%clk 0:02:01]} 27. Rxc5 {[%clk 0:01:17]}  Re2 {[%clk 0:02:02]} 28. Rb5 {[%clk 0:00:55]}  Rb6 {[%clk 0:01:52]} 29. Rxb6 {[%clk 0:00:43]}  cxb6 {[%clk 0:01:53]} 30. Rb1 {[%clk 0:00:44]}  Ra2 {[%clk 0:01:49]} 31. Rxb6 {[%clk 0:00:34]}  Rxa4 {[%clk 0:01:49]} 32. c5 {[%clk 0:00:19]}  Rc4 {[%clk 0:01:49]} 33. c6 {[%clk 0:00:19]}  Rxc3 {[%clk 0:01:48]} 34. Kf1 {[%clk 0:00:20]}  Kf8 {[%clk 0:01:47]} 35. Ke2 {[%clk 0:00:19]}  Ke7 {[%clk 0:01:46]} 36. Kd2 {[%clk 0:00:18]}  Rc5 {[%clk 0:01:46]} 37. Rb7+ {[%clk 0:00:18]}  Ke6 {[%clk 0:01:45]} 38. Ra7 {[%clk 0:00:13]}  f6 {[%clk 0:01:43]} 39. Ra6 {[%clk 0:00:14]}  Kf5 {[%clk 0:01:39]} 40. c7 {[%clk 0:00:06]}  Rxc7 {[%clk 0:01:39]} 41. Rxa5+ {[%clk 0:00:06]}  Kf4 {[%clk 0:01:39]} 42. Ra4+ {[%clk 0:00:07]}  Kg5 {[%clk 0:01:39]} 43. Ra5+ {[%clk 0:00:07]}  f5 {[%clk 0:01:40]} 44. Ke2 {[%clk 0:00:07]}  Rc1 {[%clk 0:01:40]} 45. Ke3 {[%clk 0:00:08]}  Rc2 {[%clk 0:01:39]} 46. Kf3 {[%clk 0:00:08]}  h4 {[%clk 0:01:39]} 47. Rb5 {[%clk 0:00:08]}  Rc3+ {[%clk 0:01:39]} 48. Ke2 {[%clk 0:00:08]}  Ra3 {[%clk 0:01:40]} 49. Rb4 {[%clk 0:00:09]}  Ra2+ {[%clk 0:01:40]} 50. Kf3 {[%clk 0:00:09]}  Rc2 {[%clk 0:01:39]} 51. Ra4 {[%clk 0:00:09]}  Kh5 {[%clk 0:01:39]} 52. Rb4 {[%clk 0:00:09]}  Rc3+ {[%clk 0:01:40]} 53. Ke2 {[%clk 0:00:10]}  g5 {[%clk 0:01:41]} 54. Rb5 {[%clk 0:00:10]}  Rc2+ {[%clk 0:01:41]} 55. Kf3 {[%clk 0:00:10]}  Rc3+ {[%clk 0:01:41]} 56. Ke2 {[%clk 0:00:10]}  Kg6 {[%clk 0:01:42]} 57. Rb6+ {[%clk 0:00:10]}  Kf7 {[%clk 0:01:43]} 58. Rb5 {[%clk 0:00:11]}  Ke6 {[%clk 0:01:43]} 59. Rb6+ {[%clk 0:00:12]}  Ke5 {[%clk 0:01:43]} 60. Rb5+ {[%clk 0:00:12]}  Ke4 {[%clk 0:01:44]} 61. Rb4+ {[%clk 0:00:12]}  Kd5 {[%clk 0:01:44]} 62. Rb5+ {[%clk 0:00:13]}  Ke6 {[%clk 0:01:44]} 63. Rb6+ {[%clk 0:00:13]}  Kd5 {[%clk 0:01:42]} 64. Rg6 {[%clk 0:00:11]}  Rc2+ {[%clk 0:01:40]} 65. Ke3 {[%clk 0:00:08]}  Rc3+ {[%clk 0:01:40]} 66. Kd2 {[%clk 0:00:08]}  Ra3 {[%clk 0:01:39]} 67. Rxg5 {[%clk 0:00:08]}  Ke4 {[%clk 0:01:40]} 68. Rg8 {[%clk 0:00:04]}  Ra2+ {[%clk 0:01:40]} 69. Ke1 {[%clk 0:00:05]}  Ra1+ {[%clk 0:01:41]} 70. Ke2 {[%clk 0:00:05]}  Ra2+ {[%clk 0:01:42]} 71. Ke1 {[%clk 0:00:06]}  Kf4 {[%clk 0:01:42]} 72. Rd8 {[%clk 0:00:04]}  Ra1+ {[%clk 0:01:42]} 73. Ke2 {[%clk 0:00:05]}  Ra2+ {[%clk 0:01:42]} 74. Rd2 {[%clk 0:00:04]}  Ra4 {[%clk 0:01:43]} 75. Rc2 {[%clk 0:00:05]}  Re4+ {[%clk 0:01:43]} 76. Kd3 {[%clk 0:00:05]}  Re1 {[%clk 0:01:43]} 77. Rc4+ {[%clk 0:00:05]}  Kg5 {[%clk 0:01:44]} 78. g4 {[%clk 0:00:03]}  hxg3 {[%clk 0:01:43]} 79. fxg3 {[%clk 0:00:04]}  Rg1 {[%clk 0:01:43]} 80. g4 {[%clk 0:00:04]}  Rg3+ {[%clk 0:01:43]} 81. Ke2 {[%clk 0:00:05]}  f4 {[%clk 0:01:44]} 82. Rc5+ {[%clk 0:00:05]}  Kg6 {[%clk 0:01:44]} 83. Rh5 {[%clk 0:00:05]}  Ra3 {[%clk 0:01:43]} 84. Kf2 {[%clk 0:00:05]}  Rb3 {[%clk 0:01:44]} 85. Rh8 {[%clk 0:00:05]}  Kf6 {[%clk 0:01:43]} 86. Rf8+ {[%clk 0:00:04]}  Ke5 {[%clk 0:01:44]} 87. h4 {[%clk 0:00:04]}  Rb2+ {[%clk 0:01:44]} 88. Kf3 {[%clk 0:00:04]}  Rb3+ {[%clk 0:01:44]} 89. Kf2 {[%clk 0:00:05]}  Ke4 {[%clk 0:01:45]} 90. Re8+ {[%clk 0:00:05]}  Kd4 {[%clk 0:01:46]} 91. h5 {[%clk 0:00:06]}  Rh3 {[%clk 0:01:46]} 92. Re6 {[%clk 0:00:04]}  Kd5 {[%clk 0:01:46]} 93. Re8 {[%clk 0:00:05]}  Kd4 {[%clk 0:01:46]} 94. Kg2 {[%clk 0:00:06]}  Rg3+ {[%clk 0:01:46]} 95. Kf2 {[%clk 0:00:06]}  Rxg4 {[%clk 0:01:47]} 96. Kf3 {[%clk 0:00:07]}  Rh4 {[%clk 0:01:47]} 97. Re4+ {[%clk 0:00:05]}  Kd5 {[%clk 0:01:47]} 98. Rxf4 {[%clk 0:00:06]}  Rxh5 {[%clk 0:01:47]} 99. Kg4 {[%clk 0:00:06]}  Re5 {[%clk 0:01:47]} 100. Rf5 {[%clk 0:00:07]}  Rxf5 {[%clk 0:01:48]} 101. Kxf5 {[%clk 0:00:07]} 1/2-1/2


[Site "https://www.chess.com"]

[Event "Titled Tuesday Blitz May 10 Late 2022"]
[White "Manukian, Artak"]
[Black "Jakubowski, Krzysztof"]
[WhiteFideId "13301373"]
[BlackFideId "1112848"]
[WhiteElo "2431"]
[BlackElo "2365"]
[Result "0-1"]
[Round "08"]
[TimeControl "180+1"]
[Date "2022.05.11"]
[WhiteClock "0:00:57"]
[BlackClock "0:00:59"]

1. e4 {[%clk 0:03:00]}  e5 {[%clk 0:02:58]} 2. Nf3 {[%clk 0:02:59]}  Nc6 {[%clk 0:02:58]} 3. d4 {[%clk 0:02:59]}  exd4 {[%clk 0:02:57]} 4. Nxd4 {[%clk 0:03:00]}  Nf6 {[%clk 0:02:56]} 5. Nxc6 {[%clk 0:03:00]}  bxc6 {[%clk 0:02:56]} 6. e5 {[%clk 0:03:00]}  Qe7 {[%clk 0:02:56]} 7. Qe2 {[%clk 0:03:00]}  Nd5 {[%clk 0:02:56]} 8. c4 {[%clk 0:03:01]}  Nb6 {[%clk 0:02:54]} 9. b3 {[%clk 0:03:01]}  a5 {[%clk 0:02:52]} 10. a4 {[%clk 0:03:01]}  Qe6 {[%clk 0:02:37]} 11. Nc3 {[%clk 0:03:00]}  Bb4 {[%clk 0:02:36]} 12. Bb2 {[%clk 0:02:56]}  O-O {[%clk 0:02:35]} 13. O-O-O {[%clk 0:02:51]}  Re8 {[%clk 0:02:29]} 14. f4 {[%clk 0:02:51]}  d5 {[%clk 0:02:24]} 15. Qd3 {[%clk 0:01:54]}  dxc4 {[%clk 0:02:06]} 16. bxc4 {[%clk 0:01:54]}  Ba6 {[%clk 0:02:06]} 17. f5 {[%clk 0:01:51]}  Qh6+ {[%clk 0:01:49]} 18. Qd2 {[%clk 0:01:47]}  Qxd2+ {[%clk 0:01:41]} 19. Rxd2 {[%clk 0:01:48]}  Rxe5 {[%clk 0:01:39]} 20. Re2 {[%clk 0:01:37]}  Rxf5 {[%clk 0:01:34]} 21. g4 {[%clk 0:01:33]}  Rf4 {[%clk 0:01:33]} 22. Re4 {[%clk 0:01:31]}  Rxe4 {[%clk 0:01:20]} 23. Nxe4 {[%clk 0:01:30]}  Re8 {[%clk 0:01:19]} 24. Bg2 {[%clk 0:01:23]}  Nxa4 {[%clk 0:01:11]} 25. Bd4 {[%clk 0:01:19]}  Bxc4 {[%clk 0:01:08]} 26. Rd1 {[%clk 0:01:11]}  Bd5 {[%clk 0:01:06]} 27. Nc3 {[%clk 0:00:57]}  Nxc3 {[%clk 0:00:59]} 0-1


[Site "https://www.chess.com"]

[Event "Titled Tuesday Blitz May 10 Late 2022"]
[White "Martinez Alcantara, Jose Eduardo"]
[Black "Nakamura, Hikaru"]
[WhiteFideId "3805662"]
[BlackFideId "2016192"]
[WhiteElo "2690"]
[BlackElo "2850"]
[Result "1/2-1/2"]
[Round "08"]
[TimeControl "180+1"]
[Date "2022.05.10"]
[WhiteClock "0:00:02"]
[BlackClock "0:00:14"]

1. e4 {[%clk 0:03:00]}  c5 {[%clk 0:02:57]} 2. Nf3 {[%clk 0:03:01]}  e6 {[%clk 0:02:57]} 3. c3 {[%clk 0:03:01]}  d5 {[%clk 0:02:57]} 4. exd5 {[%clk 0:03:01]}  Qxd5 {[%clk 0:02:57]} 5. d4 {[%clk 0:03:01]}  Nf6 {[%clk 0:02:58]} 6. Be3 {[%clk 0:03:00]}  cxd4 {[%clk 0:02:59]} 7. cxd4 {[%clk 0:03:01]}  Bb4+ {[%clk 0:02:58]} 8. Nc3 {[%clk 0:03:02]}  O-O {[%clk 0:02:59]} 9. Bd3 {[%clk 0:03:00]}  b6 {[%clk 0:02:56]} 10. O-O {[%clk 0:02:58]}  Bxc3 {[%clk 0:02:56]} 11. bxc3 {[%clk 0:02:59]}  Ba6 {[%clk 0:02:56]} 12. Bxa6 {[%clk 0:02:45]}  Nxa6 {[%clk 0:02:57]} 13. Ne5 {[%clk 0:02:44]}  Rac8 {[%clk 0:02:47]} 14. c4 {[%clk 0:02:42]}  Qb7 {[%clk 0:02:47]} 15. Qa4 {[%clk 0:02:33]}  Nb8 {[%clk 0:02:44]} 16. Rab1 {[%clk 0:02:22]}  Nfd7 {[%clk 0:02:33]} 17. c5 {[%clk 0:02:18]}  Nxe5 {[%clk 0:02:12]} 18. dxe5 {[%clk 0:02:19]}  Nd7 {[%clk 0:02:13]} 19. cxb6 {[%clk 0:02:07]}  axb6 {[%clk 0:02:13]} 20. Qb5 {[%clk 0:02:01]}  Rc6 {[%clk 0:02:12]} 21. Rfd1 {[%clk 0:01:38]}  Qc7 {[%clk 0:02:09]} 22. a4 {[%clk 0:01:20]}  h6 {[%clk 0:01:51]} 23. h3 {[%clk 0:01:17]}  Ra8 {[%clk 0:01:46]} 24. Rbc1 {[%clk 0:01:08]}  Nc5 {[%clk 0:01:35]} 25. Bxc5 {[%clk 0:00:48]}  bxc5 {[%clk 0:01:36]} 26. f4 {[%clk 0:00:46]}  c4 {[%clk 0:01:34]} 27. Kh2 {[%clk 0:00:43]}  c3 {[%clk 0:01:33]} 28. Rd4 {[%clk 0:00:38]}  c2 {[%clk 0:01:31]} 29. Qd3 {[%clk 0:00:33]}  g5 {[%clk 0:01:19]} 30. Rd7 {[%clk 0:00:26]}  Qc8 {[%clk 0:01:14]} 31. fxg5 {[%clk 0:00:20]}  hxg5 {[%clk 0:01:15]} 32. Rf1 {[%clk 0:00:06]}  Rc3 {[%clk 0:00:22]} 33. Qd2 {[%clk 0:00:07]}  c1=Q {[%clk 0:00:13]} 34. Rxc1 {[%clk 0:00:07]}  Qxd7 {[%clk 0:00:14]} 35. Qxg5+ {[%clk 0:00:05]}  Kf8 {[%clk 0:00:14]} 36. Rxc3 {[%clk 0:00:06]}  Rxa4 {[%clk 0:00:15]} 37. Rb3 {[%clk 0:00:03]}  Qc7 {[%clk 0:00:14]} 38. Rd3 {[%clk 0:00:03]}  Ke8 {[%clk 0:00:13]} 39. Qg8+ {[%clk 0:00:03]}  Ke7 {[%clk 0:00:13]} 40. Qg5+ {[%clk 0:00:04]}  Ke8 {[%clk 0:00:14]} 41. Qf6 {[%clk 0:00:04]}  Re4 {[%clk 0:00:13]} 42. Qh8+ {[%clk 0:00:04]}  Ke7 {[%clk 0:00:13]} 43. Qf6+ {[%clk 0:00:05]}  Ke8 {[%clk 0:00:14]} 44. Qh8+ {[%clk 0:00:02]}  Ke7 {[%clk 0:00:14]} 45. Qf6+ {[%clk 0:00:02]}  Ke8 {[%clk 0:00:14]} 1/2-1/2


[Site "https://www.chess.com"]

[Event "Titled Tuesday Blitz May 10 Late 2022"]
[White "Matinian, Nikita"]
[Black "Al-Tarboush, Ward"]
[WhiteFideId "24129100"]
[BlackFideId "7601450"]
[WhiteElo "2422"]
[BlackElo "2294"]
[Result "1-0"]
[Round "08"]
[TimeControl "180+1"]
[Date "2022.05.10"]
[WhiteClock "0:02:26"]
[BlackClock "0:01:40"]

1. e4 {[%clk 0:03:00]}  e6 {[%clk 0:02:57]} 2. d4 {[%clk 0:02:59]}  d5 {[%clk 0:02:57]} 3. Nc3 {[%clk 0:02:59]}  Nf6 {[%clk 0:02:56]} 4. Bg5 {[%clk 0:02:58]}  dxe4 {[%clk 0:02:56]} 5. Nxe4 {[%clk 0:02:57]}  Be7 {[%clk 0:02:54]} 6. Bxf6 {[%clk 0:02:57]}  gxf6 {[%clk 0:02:54]} 7. Nf3 {[%clk 0:02:58]}  f5 {[%clk 0:02:54]} 8. Nc3 {[%clk 0:02:57]}  a6 {[%clk 0:02:54]} 9. Qd2 {[%clk 0:02:56]}  b5 {[%clk 0:02:52]} 10. O-O-O {[%clk 0:02:55]}  b4 {[%clk 0:02:48]} 11. Na4 {[%clk 0:02:53]}  Bb7 {[%clk 0:02:45]} 12. Bc4 {[%clk 0:02:50]}  Qd6 {[%clk 0:02:44]} 13. Rhe1 {[%clk 0:02:47]}  Nd7 {[%clk 0:02:44]} 14. d5 {[%clk 0:02:42]}  e5 {[%clk 0:02:43]} 15. Qe2 {[%clk 0:02:34]}  e4 {[%clk 0:01:57]} 16. Nd4 {[%clk 0:02:31]}  Qf4+ {[%clk 0:01:41]} 17. Kb1 {[%clk 0:02:30]}  Ne5 {[%clk 0:01:40]} 18. g3 {[%clk 0:02:27]}  Qg5 {[%clk 0:01:40]} 19. f4 {[%clk 0:02:26]} 1-0


[Site "https://www.chess.com"]

[Event "Titled Tuesday Blitz May 10 Late 2022"]
[White "Melikhov, Evgeny V."]
[Black "Butti, Enrique"]
[WhiteFideId "4122046"]
[BlackFideId "3700470"]
[WhiteElo "1931"]
[BlackElo "2080"]
[Result "1-0"]
[Round "08"]
[TimeControl "180+1"]
[Date "2022.05.11"]
[WhiteClock "0:02:21"]
[BlackClock "0:02:06"]

1. d4 {[%clk 0:02:59]}  Nf6 {[%clk 0:02:59]} 2. c4 {[%clk 0:03:00]}  e6 {[%clk 0:02:59]} 3. Nc3 {[%clk 0:03:00]}  c5 {[%clk 0:02:58]} 4. d5 {[%clk 0:03:00]}  exd5 {[%clk 0:02:58]} 5. cxd5 {[%clk 0:03:00]}  d6 {[%clk 0:02:58]} 6. Nf3 {[%clk 0:03:00]}  g6 {[%clk 0:02:57]} 7. h3 {[%clk 0:03:01]}  Bg7 {[%clk 0:02:50]} 8. e4 {[%clk 0:03:01]}  O-O {[%clk 0:02:50]} 9. Bd3 {[%clk 0:03:01]}  b6 {[%clk 0:02:42]} 10. O-O {[%clk 0:02:59]}  Ba6 {[%clk 0:02:41]} 11. Re1 {[%clk 0:02:57]}  Bxd3 {[%clk 0:02:38]} 12. Qxd3 {[%clk 0:02:57]}  Nbd7 {[%clk 0:02:38]} 13. Bf4 {[%clk 0:02:49]}  Ne8 {[%clk 0:02:37]} 14. e5 {[%clk 0:02:36]}  dxe5 {[%clk 0:02:36]} 15. Nxe5 {[%clk 0:02:36]}  Nxe5 {[%clk 0:02:36]} 16. Bxe5 {[%clk 0:02:36]}  Bxe5 {[%clk 0:02:35]} 17. Rxe5 {[%clk 0:02:36]}  Nd6 {[%clk 0:02:34]} 18. Rae1 {[%clk 0:02:35]}  c4 {[%clk 0:02:30]} 19. Qd4 {[%clk 0:02:28]}  b5 {[%clk 0:02:26]} 20. Ne4 {[%clk 0:02:22]}  Qd7 {[%clk 0:02:06]} 21. Nf6+ {[%clk 0:02:21]} 1-0


[Site "https://www.chess.com"]